bitfinex/quotes_SOLUSD_20250924
["timestamp","ask_amount","ask_price","bid_price","bid_amount"]
[1758682290677,13.59559401,214.58,214.47,0.7]
[1758682290861,46.54,214.57,214.5,6.48344348]
[1758682291060,13.59559401,214.59,214.5,6.48344348]
[1758682291398,46.5,214.59,214.52,6.48344348]
[1758682291683,13.59559401,214.61,214.53,16.31473453]
[1758682292046,13.59559401,214.61,214.48,26.0]
[1758682292047,6.48344348,214.56,214.46,4.66287419]
[1758682292249,20.07903749,214.54,214.46,4.66287419]
[1758682292540,26.0,214.49,214.39,6.48344348]
[1758682292778,26.65,214.49,214.39,6.48344348]
[1758682292982,13.59559401,214.48,214.39,6.48344348]
[1758682293162,46.44,214.47,214.39,6.48344348]
[1758682293471,13.59559401,214.48,214.39,6.48344348]
[1758682293649,46.4,214.47,214.4,4.6641791]
[1758682293852,13.59559401,214.48,214.4,4.6641791]
[1758682294046,13.59559401,214.44,214.33,11.66389039]
[1758682294289,46.36,214.43,214.35,6.48344348]
[1758682294470,26.0,214.43,214.37,6.48344348]
[1758682295091,0.65,214.42,214.31,26.0]
[1758682295317,0.65,214.42,214.29,4.66638173]
[1758682295318,26.0,214.39,214.29,0.7]
[1758682295601,76.94480243,214.38,214.32,6.58344348]
[1758682295806,26.0,214.34,214.32,0.1]
[1758682295980,26.0,214.3,214.21,2.43934081]
[1758682296179,26.0,214.3,214.22,0.7]
[1758682296379,46.3,214.3,214.18,2.54007977]
[1758682296579,46.3,214.31,214.23,6.48344348]
[1758682296810,0.65,214.32,214.19,0.7]
[1758682296981,0.65,214.32,214.25,6.48344348]
[1758682297186,46.26,214.31,214.25,6.48344348]
[1758682297603,26.65,214.35,214.27,6.48344348]
[1758682298285,45.34,214.34,214.27,6.48344348]
[1758682298587,20.0,214.52,214.27,6.48344348]
[1758682298588,46.83,214.44,214.31,26.0]
[1758682298792,6.48344348,214.41,214.28,0.7]
[1758682298990,26.0,214.36,214.24,0.7]
[1758682299181,26.0,214.36,214.27,6.48344348]
[1758682299502,26.65,214.37,214.29,6.48344348]
[1758682299680,46.2,214.36,214.3,16.33224451]
[1758682299888,26.65,214.37,214.28,11.15003292]
[1758682300084,26.65,214.37,214.13,20.0]
[1758682300085,39.59559401,214.32,214.18,0.8]
[1758682300283,26.0,214.27,214.18,5.46894604]
[1758682300618,13.59559401,214.25,214.18,0.1]
[1758682300913,0.65,214.27,214.18,11.25234599]
[1758682301119,46.16,214.25,214.18,0.8]
[1758682301439,26.0,214.21,214.18,0.1]
[1758682301775,13.59559401,214.28,214.18,0.1]
[1758682301976,6.48344348,214.29,214.18,0.1]
[1758682301977,0.65,214.27,214.18,4.76889754]
[1758682302180,13.59559401,214.48,214.23,6.48344348]
[1758682302394,39.59559401,214.32,214.23,6.48344348]
[1758682302579,45.66,214.36,214.29,6.48344348]
[1758682302796,0.65,214.38,214.29,6.48344348]
[1758682302995,13.59559401,214.33,214.19,4.66875204]
[1758682303221,13.59559401,214.31,214.21,6.48344348]
[1758682303404,26.0,214.27,214.18,0.1]
[1758682303601,4.66744457,214.25,214.18,0.1]
[1758682303803,16.336056,214.25,214.18,0.1]
[1758682304008,26.0,214.29,214.19,5.36875204]
[1758682304197,13.59559401,214.24,214.18,0.1]
[1758682304712,37.84,214.41,214.19,0.7]
[1758682305023,26.0,214.23,214.18,0.1]
[1758682305236,26.0,214.12,214.08,1.26710582]
[1758682305441,0.65,214.11,214.08,1.26710582]
[1758682305601,4.67049647,214.11,214.08,1.26710582]
[1758682305796,26.0,214.09,214.08,1e-08]
[1758682306105,46.91,214.19,214.08,17.04900055]
[1758682306292,0.65,214.19,214.08,16.34900055]
[1758682306499,46.32,214.24,214.11,26.0]
[1758682306700,13.59559401,214.21,214.1,0.7]
[1758682306916,13.59559401,214.23,214.08,16.34900055]
[1758682306917,13.59559401,214.22,214.08,1e-08]
[1758682307114,6.48344348,214.15,214.08,1e-08]
[1758682307315,46.3,214.25,214.08,1e-08]
[1758682307316,26.0,214.1,214.08,1e-08]
[1758682307517,26.0,214.07,214.0,6.48344348]
[1758682307716,26.0,214.03,213.9,2.44282637]
[1758682307920,26.0,214.03,213.8,22.43657643]
[1758682307921,0.65,214.12,213.87,20.0]
[1758682308119,20.0,214.31,213.81,28.53000326]
[1758682308120,0.65,214.2,213.89,20.0]
[1758682308341,0.65,214.22,214.04,39.59559401]
[1758682308515,0.65,214.21,214.07,26.0]
[1758682308710,32.48344348,214.16,214.04,6.48344348]
[1758682308904,32.48344348,214.16,214.05,6.48344348]
[1758682309132,0.65,214.15,213.99,6.48344348]
[1758682309334,26.0,214.11,214.03,6.48344348]
[1758682309637,0.65,214.1,213.99,16.35590447]
[1758682309932,32.48344348,214.11,213.99,16.35590447]
[1758682309933,26.0,214.05,213.99,16.35590447]
[1758682310302,26.0,214.01,213.99,4.67311556]
[1758682310617,13.59559401,214.07,213.99,16.35590447]
[1758682310831,13.59559401,214.12,214.01,6.48344348]
[1758682311118,13.59559401,214.1,213.99,16.35590447]
[1758682311321,13.59559401,214.2,214.02,26.0]
[1758682311506,37.86,214.21,214.03,26.72]
[1758682311711,37.86,214.21,214.11,6.48344348]
[1758682311917,37.86,214.21,214.1,7.20344348]
[1758682312097,43.71038636,214.39,214.17,26.0]
[1758682312298,43.71038636,214.39,214.22,6.48344348]
[1758682312501,6.48344348,214.38,214.24,26.0]
[1758682312698,6.48344348,214.36,214.25,0.72]
[1758682312912,6.48344348,214.26,214.16,0.72]
[1758682313128,4.66461423,214.38,214.16,0.72]
[1758682313129,6.48344348,214.29,214.18,6.48344348]
[1758682313327,0.64,214.37,214.22,6.48344348]
[1758682313522,6.48344348,214.28,214.17,6.48344348]
[1758682313708,26.0,214.23,214.16,0.72]
[1758682314033,13.59559401,214.27,214.0,11.68174187]
[1758682314034,7.18344348,214.24,214.0,0.46728971]
[1758682314321,4.66461423,214.38,214.18,6.48344348]
[1758682314322,0.7,214.3,214.18,6.48344348]
[1758682314529,13.59559401,214.32,214.05,26.0]
[1758682314530,32.48344348,214.28,214.05,26.0]
[1758682314702,26.0,214.23,214.01,13.59559401]
[1758682314901,46.07903749,214.24,213.98,47.1]
[1758682315103,26.0,214.19,214.12,6.48344348]
[1758682315311,6.48344348,214.26,214.14,6.48344348]
[1758682315826,13.24,214.32,214.18,6.48344348]
[1758682315827,0.7,214.32,214.18,6.48344348]
[1758682316030,6.48344348,214.25,214.13,7.20344348]
[1758682316327,13.59559401,214.19,214.04,4.67202392]
[1758682316539,26.0,214.16,214.07,0.72]
[1758682316824,26.0,214.14,214.07,0.72]
[1758682317037,7.18344348,214.23,214.1,6.48344348]
[1758682317234,47.16,214.26,214.07,0.72]
[1758682317235,26.0,214.14,214.07,0.72]
[1758682317410,26.0,214.14,214.05,0.72]
[1758682317604,26.0,214.14,214.05,7.20344348]
[1758682318011,26.0,214.14,214.05,11.87521784]
[1758682318439,26.0,214.14,214.05,0.72]
[1758682318736,26.0,214.1,214.02,4.67228887]
[1758682318951,26.0,214.1,214.02,22.83688364]
[1758682319111,26.0,214.1,214.02,16.35344016]
[1758682319308,26.0,214.08,213.99,4.67311556]
[1758682319508,26.0,214.06,213.99,16.35590447]
[1758682319727,0.7,214.16,214.0,14.31559401]
[1758682319916,26.0,214.15,214.01,0.72]
[1758682320119,32.48344348,214.15,214.01,0.72]
[1758682320319,26.0,214.15,214.01,0.72]
[1758682320516,26.0,214.07,213.93,0.72]
[1758682320831,26.0,214.01,213.89,0.72]
[1758682321009,6.48344348,214.01,213.89,7.20344348]
[1758682321209,26.0,213.99,213.91,6.48344348]
[1758682321410,26.0,213.99,213.9,6.48344348]
[1758682321724,6.48344348,214.03,213.92,4.67464472]
[1758682321917,26.0,214.05,213.96,6.48344348]
[1758682322117,13.59559401,214.14,213.89,6.48344348]
[1758682322118,26.0,213.99,213.89,6.48344348]
[1758682322442,32.48344348,213.98,213.89,0.72]
[1758682322608,26.0,213.98,213.89,0.72]
[1758682323005,26.0,214.06,213.92,13.59559401]
[1758682323210,6.48344348,214.07,213.94,13.59559401]
[1758682323436,6.48344348,214.05,213.94,13.59559401]
[1758682323642,6.48344348,214.09,213.99,6.48344348]
[1758682323850,6.48344348,214.12,214.01,22.83781943]
[1758682324137,6.48344348,214.19,214.07,13.59559401]
[1758682324339,42.54753817,214.25,214.02,0.72]
[1758682324340,0.7,214.18,214.02,13.59559401]
[1758682324508,6.48344348,214.14,214.03,0.72]
[1758682324713,6.48344348,214.19,214.08,6.48344348]
[1758682324916,0.7,214.21,214.11,6.48344348]
[1758682325124,37.88,214.25,214.09,0.72]
[1758682325125,6.48344348,214.19,214.09,0.72]
[1758682325337,6.48344348,214.19,214.08,6.48344348]
[1758682325543,32.48344348,214.19,214.07,13.59559401]
[1758682325717,0.7,214.2,214.07,13.59559401]
[1758682325718,0.7,214.24,214.12,6.48344348]
[1758682325917,7.18344348,214.24,214.12,6.48344348]
[1758682326219,6.48344348,214.26,214.14,6.48344348]
[1758682326423,6.48344348,214.26,214.16,6.48344348]
[1758682326637,26.0,214.23,214.16,6.48344348]
[1758682326834,26.0,214.23,214.15,14.31559401]
[1758682327037,6.48344348,214.2,214.11,16.34673765]
[1758682327237,6.48344348,214.16,214.1,4.67065253]
[1758682327445,0.7,214.25,214.13,6.48344348]
[1758682327628,7.18344348,214.25,214.14,0.72]
[1758682327825,26.0,214.22,214.15,4.66962409]
[1758682328035,7.17344348,214.21,214.13,4.66995498]
[1758682328256,26.0,214.22,214.13,17.05510558]
[1758682328547,7.17344348,214.26,214.15,6.48344348]
[1758682328761,0.69,214.31,214.18,13.59559401]
[1758682328934,6.48344348,214.29,214.18,13.59559401]
[1758682329254,26.0,214.24,214.16,0.71]
[1758682329451,13.59559401,214.33,214.16,0.71]
[1758682329452,0.69,214.33,214.17,20.07903749]
[1758682329749,26.0,214.27,214.19,22.82407562]
[1758682330049,13.59559401,214.36,214.19,22.82407562]
[1758682330050,0.69,214.34,214.22,6.48344348]
[1758682330230,0.69,214.34,214.21,20.07903749]
[1758682330429,32.48344348,214.25,214.15,13.59559401]
[1758682330637,26.0,214.25,214.14,0.71]
[1758682330839,26.0,214.2,214.14,0.71]
[1758682331136,26.0,214.2,214.11,14.30559401]
[1758682331731,6.48344348,214.21,214.12,16.34597421]
[1758682332040,26.0,214.14,214.05,0.71]
[1758682332228,0.69,214.22,214.1,6.48344348]
[1758682332431,6.48344348,214.26,214.14,6.48344348]
[1758682332624,6.48344348,214.26,214.15,6.48344348]
[1758682332842,26.0,214.23,214.14,0.71]
[1758682333244,26.0,214.19,214.1,7.19344348]
[1758682333852,26.0,214.15,214.06,11.67875837]
[1758682334226,26.0,214.11,214.05,4.67180565]
[1758682334434,26.0,214.11,214.05,16.35131978]
[1758682335940,26.0,214.07,214.02,4.67224933]
[1758682336534,26.0,214.08,214.02,5.38224933]
[1758682336729,26.0,214.08,214.02,4.67224933]
[1758682337149,26.0,214.06,213.98,5.38332477]
[1758682337464,26.0,214.06,213.98,17.06665966]
[1758682337635,26.0,214.06,213.98,23.55010314]
[1758682337950,26.0,214.06,213.98,11.86676825]
[1758682338251,26.0,214.06,213.98,23.55010314]
[1758682339257,26.0,214.06,213.98,16.35665966]
[1758682339758,26.0,214.02,213.98,4.67332477]
[1758682339933,0.69,214.01,213.92,11.68661181]
[1758682340135,26.0,214.0,213.92,16.36125653]
[1758682340755,0.69,214.01,213.88,0.71]
[1758682340937,6.48344348,213.95,213.83,0.67]
[1758682341138,6.48344348,213.93,213.83,0.67]
[1758682341528,6.48344348,213.93,213.83,7.15344348]
[1758682341934,6.48344348,213.93,213.84,16.36737747]
[1758682343179,26.0,213.9,213.84,4.67639356]
[1758682343336,6.48344348,213.89,213.82,4.67661402]
[1758682344049,6.48344348,213.89,213.79,16.37120538]
[1758682344247,6.48344348,213.91,213.8,20.74903749]
[1758682344457,6.48344348,213.97,213.85,13.59559401]
[1758682344636,6.48344348,213.93,213.82,7.15344348]
[1758682344958,26.0,213.9,213.82,0.67]
[1758682345156,6.48344348,213.95,213.84,6.48344348]
[1758682345946,6.48344348,214.0,213.88,6.48344348]
[1758682346258,7.13344348,214.05,213.94,6.48344348]
[1758682346478,6.48344348,214.03,213.89,26.0]
[1758682346637,0.65,214.02,213.89,6.48344348]
[1758682346843,0.65,214.02,213.91,6.48344348]
[1758682347050,6.48344348,214.03,213.93,6.48344348]
[1758682347445,6.48344348,214.03,213.92,0.67]
[1758682347633,13.59559401,214.08,213.92,0.67]
[1758682347634,6.48344348,214.01,213.92,0.67]
[1758682347851,26.0,214.02,213.92,7.15344348]
[1758682348177,7.13344348,214.05,213.97,26.0]
[1758682348361,6.48344348,214.03,213.97,26.0]
[1758682348754,6.48344348,214.03,213.95,4.67398924]
[1758682349074,6.48344348,214.01,213.93,30.67425277]
[1758682349377,6.48344348,213.99,213.88,0.67]
[1758682349583,6.48344348,213.97,213.88,5.34532433]
[1758682350051,6.48344348,213.97,213.88,17.03412178]
[1758682350251,0.65,213.98,213.91,26.0]
[1758682350652,5.71997406,213.97,213.88,16.36412178]
[1758682350864,0.65,213.98,213.88,16.36412178]
[1758682350865,5.71997406,213.95,213.88,16.36412178]
[1758682351056,5.71997406,213.93,213.81,5.71997406]
[1758682351260,0.65,213.94,213.84,26.0]
[1758682351463,0.65,213.94,213.83,6.38997406]
[1758682351464,26.0,213.98,213.87,5.71997406]
[1758682351654,0.65,213.97,213.85,32.38997406]
[1758682352056,13.59559401,214.01,213.9,26.0]
[1758682352057,5.71997406,214.0,213.9,26.0]
[1758682352254,6.36997406,214.01,213.9,26.0]
[1758682352460,6.36997406,214.01,213.89,6.38997406]
[1758682352663,6.36997406,214.01,213.92,26.0]
[1758682352976,5.71997406,213.99,213.86,16.36584681]
[1758682353181,5.71997406,213.95,213.86,42.36584681]
[1758682353483,0.65,214.01,213.91,26.0]
[1758682353658,5.71997406,213.98,213.88,31.71997406]
[1758682353848,5.71997406,213.99,213.88,31.71997406]
[1758682354053,5.71997406,214.03,213.92,16.36125653]
[1758682354279,5.71997406,214.03,213.93,0.67]
[1758682354481,5.71997406,214.01,213.93,0.67]
[1758682354791,0.65,214.02,213.92,16.36125653]
[1758682354953,0.65,214.02,213.93,0.67]
[1758682355387,13.59559401,214.05,213.95,26.0]
[1758682355388,0.65,214.05,213.95,26.0]
[1758682355589,13.59559401,214.18,213.96,26.67]
[1758682355755,5.71997406,214.07,213.96,26.67]
[1758682355953,5.71997406,214.05,213.97,4.67355236]
[1758682356157,5.71997406,214.03,213.97,4.67355236]
[1758682356378,5.71997406,214.05,213.97,16.35743327]
[1758682356584,31.71997406,214.06,213.97,16.35743327]
[1758682356772,31.71997406,214.06,213.93,26.0]
[1758682356773,5.71997406,214.0,213.93,26.0]
[1758682357080,23.82870633,214.27,213.98,26.0]
[1758682357378,0.65,214.21,214.02,26.0]
[1758682357575,5.71997406,214.13,214.03,0.67]
[1758682357878,13.59559401,214.19,214.03,0.67]
[1758682357879,5.71997406,214.11,214.03,26.0]
[1758682358058,6.36997406,214.12,214.03,30.67206885]
[1758682358460,0.65,214.12,214.03,4.67206885]
[1758682358659,4.14822251,214.12,214.03,4.67206885]
[1758682359254,0.65,214.12,214.03,4.67206885]
[1758682359458,26.0,214.14,214.04,4.16822251]
[1758682359664,3.49822251,214.11,214.02,30.67240954]
[1758682360560,3.49822251,214.11,214.02,42.35356083]
[1758682360760,0.65,214.13,214.03,0.67]
[1758682360761,4.14822251,214.13,214.03,0.67]
[1758682360961,4.14822251,214.13,214.02,45.85178334]
[1758682360962,4.14822251,214.13,214.02,4.67240954]
[1758682361161,3.49822251,214.1,214.02,16.35356083]
[1758682361468,3.49822251,214.1,214.02,4.67240954]
[1758682361969,3.49822251,214.06,213.96,0.67]
[1758682362162,26.0,214.07,213.96,17.02800344]
[1758682362362,0.65,214.09,213.99,26.0]
[1758682362578,3.49822251,214.12,214.0,4.16822251]
[1758682362784,3.49822251,214.12,214.01,0.67]
[1758682362974,3.49822251,214.12,214.02,3.49822251]
[1758682363172,3.49822251,214.12,214.03,0.67]
[1758682363781,0.65,214.13,214.03,0.67]
[1758682363782,3.49822251,214.13,214.03,0.67]
[1758682364092,3.49822251,214.19,214.07,26.0]
[1758682364300,4.66635557,214.3,214.1,3.49822251]
[1758682364503,3.49822251,214.22,214.11,0.67]
[1758682364689,3.49822251,214.23,214.12,26.0]
[1758682364995,3.49822251,214.23,214.1,3.49822251]
[1758682364996,3.49822251,214.25,214.14,3.49822251]
[1758682365182,3.49822251,214.25,214.13,26.67]
[1758682365183,4.14822251,214.25,214.13,26.67]
[1758682365580,4.14822251,214.25,214.13,0.67]
[1758682365775,4.14822251,214.25,214.14,0.67]
[1758682366089,26.65,214.25,214.14,4.16822251]
[1758682366297,4.14822251,214.25,214.15,4.66962409]
[1758682366473,26.65,214.25,214.15,4.66962409]
[1758682366676,30.14822251,214.25,214.15,4.66962409]
[1758682366874,3.49822251,214.27,214.18,26.0]
[1758682367073,0.65,214.29,214.12,26.0]
[1758682367074,3.49822251,214.25,214.14,26.67]
[1758682367380,3.49822251,214.25,214.14,30.16822251]
[1758682367595,0.65,214.26,214.14,30.16822251]
[1758682367768,3.49822251,214.25,214.14,30.16822251]
[1758682368193,3.49822251,214.25,214.09,45.06]
[1758682368194,8.16610282,214.23,214.1,0.67]
[1758682368379,3.49822251,214.21,214.12,26.0]
[1758682368577,3.49822251,214.21,214.11,3.49822251]
[1758682368881,3.49822251,214.21,214.12,0.67]
[1758682369093,3.49822251,214.19,214.1,4.67071461]
[1758682369398,3.49822251,214.19,214.1,30.67071461]
[1758682369984,3.49822251,214.14,214.04,12.34987955]
[1758682370180,3.49822251,214.14,213.91,47.91161067]
[1758682370181,3.49822251,214.14,214.05,0.67]
[1758682370390,3.49822251,214.12,214.06,30.67139725]
[1758682370577,3.49822251,214.12,214.05,0.67]
[1758682370798,3.49822251,214.12,214.05,5.34177843]
[1758682371099,4.66881409,214.19,214.06,0.69]
[1758682371100,18.94439434,214.19,214.06,0.69]
[1758682371291,29.49822251,214.16,214.06,0.69]
[1758682371673,3.49822251,214.17,214.06,0.69]
[1758682371880,3.49822251,214.23,214.11,3.49822251]
[1758682372090,3.49822251,214.19,214.08,26.0]
[1758682372288,8.16713025,214.19,214.08,34.16917752]
[1758682372495,3.49822251,214.19,214.09,0.69]
[1758682372875,0.68,214.2,214.1,3.49822251]
[1758682373088,4.17822251,214.22,214.1,3.49822251]
[1758682373490,8.84634409,214.22,214.1,3.49822251]
[1758682373803,3.49822251,214.2,214.1,3.49822251]
[1758682374003,4.17822251,214.27,214.16,3.49822251]
[1758682374377,0.68,214.31,214.18,3.49822251]
[1758682374584,3.49822251,214.3,214.19,0.69]
[1758682374883,3.49822251,214.28,214.18,3.49822251]
[1758682375199,3.49822251,214.26,214.15,0.69]
[1758682375384,3.49822251,214.24,214.15,0.69]
[1758682375704,3.49822251,214.22,214.12,26.0]
[1758682375914,3.49822251,214.22,214.1,4.18822251]
[1758682376196,0.68,214.21,214.12,26.0]
[1758682376399,4.66853408,214.2,214.12,26.0]
[1758682376796,4.66853408,214.2,214.12,30.67025617]
[1758682377010,0.68,214.26,214.13,0.69]
[1758682377307,3.49822251,214.23,214.13,0.69]
[1758682377478,3.49822251,214.23,214.09,3.49822251]
[1758682377479,3.49822251,214.21,214.09,3.49822251]
[1758682377682,26.0,214.21,214.1,0.69]
[1758682377996,3.49822251,214.2,214.1,0.69]
[1758682378490,29.49822251,214.21,214.1,5.36062032]
[1758682378813,34.16654166,214.21,214.1,5.36062032]
[1758682379609,8.16654166,214.21,214.11,3.49822251]
[1758682379915,3.49822251,214.21,214.11,3.49822251]
[1758682380279,0.68,214.22,214.13,26.0]
[1758682380596,38.1,214.39,214.2,3.49822251]
[1758682380597,0.68,214.28,214.2,3.49822251]
[1758682381003,13.59559401,214.31,214.21,3.49822251]
[1758682381182,4.17822251,214.35,214.23,3.49822251]
[1758682381386,0.68,214.35,214.25,29.49822251]
[1758682381586,0.2,214.39,214.29,3.49822251]
[1758682381894,0.2,214.39,214.32,3.49822251]
[1758682382090,0.2,214.39,214.34,3.49822251]
[1758682382289,0.2,214.39,214.33,4.18822251]
[1758682382499,0.68,214.37,214.26,3.49822251]
[1758682382685,0.68,214.37,214.25,30.18822251]
[1758682382891,0.68,214.37,214.27,3.49822251]
[1758682383312,13.59559401,214.36,214.26,0.69]
[1758682383513,0.2,214.38,214.29,3.49822251]
[1758682383688,0.2,214.38,214.29,4.18822251]
[1758682383893,0.2,214.38,214.31,3.49822251]
[1758682384115,0.2,214.38,214.35,3.49822251]
[1758682384418,0.2,214.38,214.35,8.16344318]
[1758682384592,0.2,214.38,214.34,3.49822251]
[1758682384991,0.2,214.38,214.35,0.69]
[1758682385528,0.2,214.38,214.27,0.69]
[1758682385529,0.68,214.37,214.27,0.69]
[1758682385706,3.49822251,214.36,214.27,0.69]
[1758682385892,3.49822251,214.36,214.25,26.0]
[1758682386098,3.49822251,214.34,214.22,0.69]
[1758682386622,4.66570242,214.33,214.23,4.66788031]
[1758682386938,4.66570242,214.33,214.18,0.69]
[1758682386939,29.49822251,214.3,214.18,0.69]
[1758682387088,0.68,214.29,214.18,0.69]
[1758682387292,26.0,214.3,214.19,3.49822251]
[1758682387514,0.68,214.34,214.23,3.49822251]
[1758682387701,5.3454904,214.34,214.24,0.71]
[1758682387893,5.3454904,214.34,214.21,26.0]
[1758682387894,8.84371291,214.34,214.21,29.49822251]
[1758682388318,3.49822251,214.32,214.2,0.71]
[1758682388506,5.35613783,214.31,214.2,5.37847087]
[1758682388821,5.35613783,214.31,214.16,55.79311348]
[1758682388822,3.49822251,214.28,214.16,30.20822251]
[1758682389057,3.49822251,214.28,214.16,0.71]
[1758682389325,3.49822251,214.24,214.12,0.71]
[1758682389496,3.49822251,214.22,214.12,0.71]
[1758682389824,4.18822251,214.28,214.16,3.49822251]
[1758682390009,30.18822251,214.28,214.17,0.71]
[1758682390623,4.66700891,214.27,214.17,0.71]
[1758682390808,4.66700891,214.27,214.17,5.37915222]
[1758682391010,8.16523142,214.27,214.17,5.37915222]
[1758682391213,8.16523142,214.27,214.17,5.37915167]
[1758682391603,8.16523142,214.27,214.17,0.71]
[1758682392123,3.49822251,214.24,214.14,26.0]
[1758682392432,3.49822251,214.22,214.1,3.49822251]
[1758682392607,8.16634576,214.22,214.11,8.87871898]
[1758682393020,3.49822251,214.2,214.08,4.20822251]
[1758682393213,3.49822251,214.2,214.09,26.0]
[1758682393717,29.49822251,214.18,214.08,0.71]
[1758682394434,0.69,214.19,214.1,3.49822251]
[1758682394630,0.69,214.22,214.13,3.49822251]
[1758682394933,0.69,214.21,214.11,4.20822251]
[1758682395427,0.69,214.21,214.11,0.71]
[1758682395606,4.18822251,214.21,214.11,0.71]
[1758682396112,3.49822251,214.17,214.06,0.71]
[1758682396317,3.49822251,214.15,214.06,0.71]
[1758682396633,3.49822251,214.17,214.06,5.38140609]
[1758682396828,3.49822251,214.15,214.06,26.71]
[1758682397428,3.49822251,214.15,214.06,0.71]
[1758682397735,3.49822251,214.15,214.06,26.71]
[1758682397921,3.49822251,214.15,214.06,31.38157521]
[1758682398122,29.49822251,214.17,214.07,0.71]
[1758682398335,29.49822251,214.17,214.07,4.20822251]
[1758682399009,34.85752764,214.17,214.07,4.20822251]
[1758682399224,3.49822251,214.15,214.07,0.71]
[1758682399406,34.85752764,214.17,214.07,5.38133677]
[1758682399911,34.85752764,214.17,214.07,0.71]
[1758682400636,34.85752764,214.17,214.05,26.0]
[1758682400637,3.49822251,214.15,214.05,26.0]
[1758682400933,0.7,214.14,214.06,26.0]
[1758682401115,4.67006024,214.13,214.06,26.0]
[1758682401437,0.7,214.14,214.06,26.0]
[1758682402420,3.49822251,214.09,213.99,0.67]
[1758682402617,4.19822251,214.09,213.99,0.67]
[1758682403324,4.19822251,214.09,213.99,5.3430267]
[1758682403325,4.67115097,214.08,213.99,5.3430267]
[1758682403719,4.67115097,214.08,213.99,0.67]
[1758682403923,4.19822251,214.07,213.98,26.0]
[1758682404127,3.49822251,214.05,213.96,0.67]
[1758682405542,4.67202392,214.04,213.96,0.67]
[1758682406253,4.67202392,214.04,213.96,26.67]
[1758682407041,0.7,214.03,213.91,0.67]
[1758682407350,4.19822251,214.03,213.91,0.67]
[1758682407530,26.0,214.0,213.91,5.34483737]
[1758682407850,3.49822251,214.02,213.92,3.49822251]
[1758682408048,5.3726994,214.01,213.92,3.49822251]
[1758682408227,5.3726994,214.01,213.91,34.84298439]
[1758682409462,0.7,214.01,213.91,34.84298439]
[1758682409753,0.7,214.01,213.92,0.67]
[1758682409954,5.37272068,214.01,213.92,0.67]
[1758682410123,13.59559401,214.06,213.95,3.49822251]
[1758682410325,0.7,214.05,213.95,0.67]
[1758682410539,5.36328412,214.04,213.95,0.67]
[1758682411048,0.7,214.03,213.93,26.0]
[1758682411257,19.65887813,214.06,213.94,0.67]
[1758682411434,0.7,214.06,213.94,0.67]
[1758682411634,5.37159148,214.06,213.97,26.0]
[1758682411944,5.37159148,214.06,213.97,26.67]
[1758682412141,5.37159148,214.06,213.95,4.67398924]
[1758682412142,5.36328412,214.05,213.95,4.67398924]
[1758682412345,5.36328412,214.05,213.96,0.67]
[1758682412934,5.37159148,214.06,213.96,5.34377019]
[1758682413131,10.7348756,214.06,213.96,5.34377019]
[1758682413331,5.37159148,214.06,213.96,5.34377019]
[1758682417135,21.71384411,214.06,213.96,0.67]
[1758682417446,11.67737927,214.09,213.96,5.34367868]
[1758682417635,13.59559401,214.07,213.97,0.67]
[1758682418053,14.29559401,214.07,213.97,0.67]
[1758682418742,4.6715874,214.06,213.97,5.34337581]
[1758682419737,0.7,214.07,213.98,0.67]
[1758682420256,5.37140226,214.07,213.98,0.67]
[1758682421062,5.37140226,214.07,213.99,4.67311556]
[1758682424445,0.7,214.06,213.97,26.0]
[1758682424768,0.7,214.05,213.97,31.34352882]
[1758682425644,5.37185616,214.05,213.97,36.7056246]
[1758682426069,0.7,214.05,213.97,36.7056246]
[1758682426639,5.37182076,214.05,213.97,36.7056246]
[1758682427769,5.36209578,214.03,213.93,0.67]
[1758682427975,0.7,214.02,213.93,0.67]
[1758682429445,16.35133489,214.05,213.94,5.36209578]